Cogmind - Beta 16 @@@ ROGUE MODE // 2025.12.07 @ 13:38:29 Player: PopcornMaze Result: Destroyed by G-47 Trooper with Particle Gun Performance ------------- Evolutions (0) 0 Regions Visited (2) 400 Robots Destroyed (22) 110 Value Destroyed (520) 520 Prototype IDs (1) 20 Alien Tech Used (0) 0 Bonus (0) 0 TOTAL SCORE: 1050 Bonus ------- None Cogmind --------- Core Integrity 0/250 Matter 297/300 Energy 100/100 System Corruption 0% Temperature Cool (32) Movement Treading (160) Location -10/Mines Parts ------- > --- POWER (1) -------- (None) > --- PROPULSION (2) --- Light Treads Light Treads > --- UTILITY (2) ------ Medium Storage Unit > --- WEAPON (2) ------- Medium Laser Assault Rifle > --- INVENTORY (10) --- Ion Engine Ion Engine Light Ion Engine Light Treads Wheel Improved Heat Sink Faulty Experimental Sensor Array Utility Shielding Light Assault Rifle Light Assault Rifle Peak State ------------ > --- POWER ------------ Ion Engine > --- PROPULSION ------- Light Treads Light Treads > --- UTILITY ---------- Medium Storage Unit Experimental Sensor Array > --- WEAPON ----------- Medium Laser Assault Rifle > --- INVENTORY -------- Ion Engine Ion Engine Light Ion Engine Light Treads Wheel Improved Heat Sink Utility Shielding Light Assault Rifle Light Assault Rifle [Rating: 16] Favorites ----------- Power Ion Engine Engine Ion Engine Propulsion Light Treads Treads Light Treads Utility Medium Storage Unit Device Experimental Sensor Array Storage Medium Storage Unit Protection Light Armor Plating Weapon Assault Rifle Energy Gun Medium Laser Ballistic Gun Assault Rifle Build | -11 -10 -10 ------- Run | Yrd Mat Min Slots Evolved . | . . . Power . | . . . Propulsion . | . . . Utility . | . . . Weapon . | . . . Parts Attached 15 | 7 3 5 Power 1 | 1 . . Engine 1 | 1 . . Core . | . . . Reactor . | . . . Propulsion 3 | 2 . 1 Treads 3 | 2 . 1 Leg . | . . . Wheel . | . . . Hover . | . . . Flight . | . . . Utility 6 | 1 3 2 Device 1 | . . 1 Storage 2 | 1 1 . Processor . | . . . Hackware . | . . . Protection 3 | . 2 1 Artifact . | . . . Weapon 5 | 3 . 2 Energy Gun 2 | 1 . 1 Energy Cannon . | . . . Ballistic Gun 3 | 2 . 1 Ballistic Cannon . | . . . Launcher . | . . . Special Weapon . | . . . Impact Weapon . | . . . Slashing Weapon . | . . . Piercing Weapon . | . . . Special Melee Weapon . | . . . Unidentified Prototypes 1 | . . 1 Parts Lost 6 | . . 6 Power 1 | . . 1 Propulsion 1 | . . 1 Utility 2 | . . 2 Weapon 2 | . . 2 Highest Loss Streak 3 | . . 3 To Critical Strikes . | . . . Average Backups 6 | 2 5 9 Power 2 | . 1 3 Propulsion 2 | 1 2 2 Utility 1 | . . 2 Weapon 1 | . 1 1 Tool/Special . | . . . Unused Backups 10 | . 2 8 Power 4 | . 1 3 Propulsion 3 | . 1 2 Utility 1 | . . 1 Weapon 2 | . . 2 Tool/Special . | . . . Average Slot Usage (%) 91 | . 93 90 Engine 12 | . 14 10 Treads 27 | . 28 27 Storage 14 | . 14 14 Protection 8 | . 8 9 Energy Gun 3 | . . 7 Ballistic Gun 23 | . 28 19 Peak Build Rating 16 | 6 8 16 Average Rating 7 | 5 6 7 On Entrance 4 | . 6 8 Avg Prop Armor Cover (%) . | . . . Naked Turns . | . . . Heaviest Build 22 | 14 22 22 Greatest Support 40 | 40 40 40 Greatest Overweight (x) . | . . . Average Overweight (x) . | . . . Largest Inventory Capacity 10 | 8 10 10 Average Capacity 9 | 7 9 10 Most Carried 10 | 4 10 10 Average Carried 6 | 2 5 9 Final Capacity 10 | 8 10 10 Final Carried 10 | 4 10 10 Class Distribution -------------------- 100% | Mutant Dominant Class ---------------- Mutant | -10/Materials Mutant | -10/Mines Resources | -11 -10 -10 ----------- Run | Yrd Mat Min Matter Collected 738 | 232 284 222 Remotely . | . . . Salvage Created 749 | . 382 367 Parts 46 | . 21 25 Haulers Intercepted 2 | . 2 . Recyclers Shooed . | . . . Parts Field Recycled . | . . . Retrieved Matter . | . . . Parts Self-Destructed . | . . . Prevented . | . . . Parts Restored . | . . . Kills | -11 -10 -10 ------- Run | Yrd Mat Min Combat Hostiles Destroyed 20 | . 8 12 Guns 20 | . 8 12 Classes Destroyed 3 | . 3 . Hauler 2 | . 2 . Swarmer 9 | . 3 6 Grunt 11 | . 5 6 Best Kill Streak 3 | . 3 3 Combat Bots Only 3 | . 3 3 Max Kills in Single Turn 1 | . 1 1 Gunslinging . | . . . Exploded . | . . . Melee . | . . . Uniques/NPCs Destroyed . | . . . Combat | -11 -10 -10 -------- Run | Yrd Mat Min Hostile Shots Fired 120 | . 47 73 Missed 26 | . 13 13 Hits 94 | . 34 60 Projectile 94 | . 34 60 Critical Strikes 4 | . 1 3 Damage Taken 1121 | . 369 752 Core 264 | . 78 186 Absorbed by Shields . | . . . Redirected to Shielding 6 | . 6 . Core Remaining (%) 100 | 100 . . Volleys Fired 81 | . 36 45 Largest 2 | . 2 2 Hottest 70 | . 40 70 Shots Fired 152 | . 72 80 Gun 152 | . 72 80 Cannon . | . . . Launcher . | . . . Special . | . . . Kinetic 137 | . 72 65 Thermal 15 | . . 15 Explosive . | . . . Electromagnetic . | . . . Robot Hit Streak 16 | . 15 16 Robot Miss Streak 4 | . 2 4 Penetration Max . | . . . Secondary Targets 4 | . 1 3 Max Gunslinging Chain 1 | . 1 1 Shots Hit Robots 110 | . 56 54 Core Hits 38 | . 17 21 Critical Kills . | . . . Critical Parts Destroyed 1 | . 1 . Critical Strikes 1 | . 1 . Destroy 1 | . 1 . Melee Attacks . | . . . Impact . | . . . Slashing . | . . . Piercing . | . . . Sneak Attacks . | . . . Combat Hostiles . | . . . Follow-up Attacks . | . . . Damage Inflicted 1363 | . 700 663 Guns 1363 | . 700 663 Cannons . | . . . Explosions . | . . . Melee . | . . . Ramming . | . . . Kinetic 1215 | . 700 515 Thermal 148 | . . 148 Explosive . | . . . Electromagnetic . | . . . Impact . | . . . Slashing . | . . . Piercing . | . . . Highest Corruption . | . . . Average Corruption . | . . . Corruption Purged . | . . . Corruption Blocked . | . . . Overload Shots . | . . . Overflow Damage . | . . . Projectiles . | . . . Explosions . | . . . Melee . | . . . Knockbacks . | . . . Impact . | . . . Kinetic . | . . . Secondary . | . . . Self-Inflicted Damage . | . . . Shots . | . . . Rammed . | . . . Targets Rammed . | . . . Kicked . | . . . Crushed . | . . . Highest Temperature 120 | . 26 120 Average Temperature 41 | . 10 44 Received Heat Transfer 627 | . 201 426 Siege Activations . | . . . Martial Activations . | . . . Shielding Activations . | . . . Robots Disrupted . | . . . Combat Hostiles . | . . . Robots Corrupted . | . . . Combat Hostiles . | . . . Parts Fried . | . . . Impact Corruptions . | . . . Robots Melted . | . . . Combat Hostiles . | . . . Parts Melted 3 | . . 3 Heat Transferred 444 | . . 444 Parts Sabotaged . | . . . Parts Stolen . | . . . Parts Stripped . | . . . Power Chain Reactions . | . . . Alert | -11 -10 -10 ------- Run | Yrd Mat Min Maximum Alert Level . | . . . Low Security (%) 100 | 100 100 100 Level 1 . | . . . Level 2 . | . . . Level 3 . | . . . Level 4 . | . . . Level 5 . | . . . High Security . | . . . Max Security . | . . . Peak Influence 120 | . 108 120 Initial 4 | . . 4 Average 38 | . 41 44 Influence Increases 553 | . 263 290 Destroy 0b10 Robot/C 400 | . 160 240 Destroy 0b10 Robot/NC 10 | . 10 . Destroy Leader 84 | . 34 50 Successful Hack 12 | . 12 . Select Force Hacks 30 | . 30 . Destroy Structure 2 | . 2 . Lose Combat Pursuer 15 | . 15 . Influence Decreases 533 | . 251 282 Entered New Map 8 | . . 8 Time Decay 475 | . 251 224 Lost Part 50 | . . 50 Squads Dispatched 2 | . 2 . Investigation 2 | . 2 . Extermination . | . . . Reinforcement . | . . . Assault . | . . . Garrison . | . . . Intercept . | . . . Searches Triggered . | . . . Construction Impeded . | . . . Haulers Reinforced . | . . . Active Scanning Responses . | . . . Cargo Convoy Interrupts . | . . . Stealth | -11 -10 -10 --------- Run | Yrd Mat Min Distress Signals 1 | . 1 . Communications Jammed . | . . . Distress Signals . | . . . Times Spotted 25 | . 11 14 Peak Tracking Total 4 | . 4 3 Tactical Retreats 1 | . 1 . Traps | -11 -10 -10 ------- Run | Yrd Mat Min Traps Triggered . | . . . Indirectly . | . . . Trap Hack Attempts . | . . . Triggered . | . . . Disarmed . | . . . Reprogrammed . | . . . Reused . | . . . Traps Extracted . | . . . Installed . | . . . Triggered . | . . . Machines | -11 -10 -10 ---------- Run | Yrd Mat Min Machines Disabled . | . . . Max in Single Turn . | . . . Machines Repaired . | . . . Machines Dismantled . | . . . Machines Sabotaged . | . . . Overloaded Fab Kills . | . . . Hacking | -11 -10 -10 --------- Run | Yrd Mat Min Machines Accessed 3 | . 3 . Terminals 2 | . 2 . Fabricators . | . . . Repair Stations . | . . . Recycling Units 1 | . 1 . Scanalyzers . | . . . Garrison Access . | . . . Total Hacks 4 | . 4 . Successful 3 | . 3 . Failed 1 | . 1 . Catastrophic 1 | . 1 . Database Lockouts . | . . . Manual 4 | . 4 . Terminals 3 | . 3 . Fabricators . | . . . Repair Stations . | . . . Recycling Units 1 | . 1 . Scanalyzers . | . . . Garrison Access . | . . . Terminal Hacks 1 | . 1 . Robot Schematic 1 | . 1 . Fabricator Hacks . | . . . Repair Station Hacks . | . . . Recycling Unit Hacks . | . . . Scanalyzer . | . . . Garrison Access Hacks . | . . . Unauthorized Hacks 2 | . 2 . Terminals 1 | . 1 . Botnet 1 | . 1 . Fabricators . | . . . Repair Stations . | . . . Recycling Units 1 | . 1 . Tunnel 1 | . 1 . Scanalyzers . | . . . Garrison Access . | . . . Data Cores Recovered . | . . . Used . | . . . Hacking Detections 2 | . 2 . Full Trace Events . | . . . Feedback Events . | . . . Feedback Blocked . | . . . Robot Schematics Acquired 1 | . 1 . Robots Built . | . . . Authchips . | . . . Time . | . . . Total Robot Build Rating . | . . . Part Schematics Acquired . | . . . Parts Built . | . . . Authchips . | . . . Time . | . . . Total Part Build Rating . | . . . Part Studies Acquired . | . . . Parts Repaired . | . . . Time . | . . . Parts Recycled . | . . . Recycled Matter . | . . . Retrieved Matter . | . . . Retrieved Components . | . . . Parts Scanalyzed . | . . . Part Schematics Acquired . | . . . Parts Damaged . | . . . Bothacking | -11 -10 -10 ------------ Run | Yrd Mat Min Used RIF Installer . | . . . Robots Hacked . | . . . Non-combat . | . . . Combat . | . . . Robot Hacks Applied . | . . . Relay Couplers Released . | . . . Fabnet Peak Effective % . | . . . Robots Rewired . | . . . Allies Hacked . | . . . Hacks Repelled . | . . . Allies | -11 -10 -10 -------- Run | Yrd Mat Min Total Allies . | . . . Largest Group . | . . . Highest-Rated Group . | . . . Highest-Rated Ally . | . . . Total Orders . | . . . Ally Attacks . | . . . Total Damage . | . . . Kills . | . . . Allies Corrupted . | . . . Allies Melted . | . . . Intel | -11 -10 -10 ------- Run | Yrd Mat Min Active Infowar (turns) . | . . . Robot Analysis Total . | . . . Derelict Logs Recovered . | . . . Drone Launches . | . . . Drone Recoveries . | . . . Exploration | -11 -10 -10 ------------- Run | Yrd Mat Min Turns Passed 1356 | 122 643 591 Spaces Moved 655 | 68 315 272 Core 3 | 3 . . Treads 652 | 65 315 272 Legs . | . . . Wheels . | . . . Hover . | . . . Flight . | . . . Fastest Speed 50 | 50 160 160 Average Speed 159 | 155 160 160 Slowest Speed 160 | 160 160 160 Overloaded Moves . | . . . Propulsion Burnouts . | . . . Robots Hopped . | . . . Potential Cave-ins . | . . . Cave-ins Triggered . | . . . Exploration Rate (%) 33 | 4 49 46 Regions Visited 2 Branch Regions 1 Pre-discovered Areas 1 | . 1 . Known Exits Taken . | . . . Unknown Exits Taken 2 | 1 1 . Scrap Searched 1 | . . 1 Spaces Dug . | . . . Terrain Destroyed . | . . . Melee . | . . . Projectile . | . . . AOE . | . . . Terrain Rammed . | . . . Walls Destroyed . | . . . Machines Disabled . | . . . Actions | -11 -10 -10 --------- Run | Yrd Mat Min Total 812 | 81 383 348 Wait 38 | 3 17 18 Move 653 | 67 314 272 Hop . | . . . Pick Up 18 | 4 9 5 Fast Attach 9 | 6 2 1 Attach 5 | . . 5 Detach . | . . . Swap 2 | 1 1 . Drop 6 | . 4 2 Fire 81 | . 36 45 Melee . | . . . Ram . | . . . Kick . | . . . Crush . | . . . Escape Stasis . | . . . Rewire . | . . . Trap . | . . . Miscellaneous . | . . . Route ------- -11/Scrapyard -10/Materials (discovered 3 exits: [*Mat] / [*Min x2]) -10/Mines (discovered 1 exit: [*Mat]) History --------- Turn | Location | Event 6 | -11/Scrapyard | Discovered new exit (range 14) 123 | -11/Scrapyard | Entered Materials 124 | -10/Materials | Met a group of wandering Federalists 314 | -10/Materials | Build established: Mutant 370 | -10/Materials | Discovered new exit (range 7) 511 | -10/Materials | Discovered new exit (range 16) 635 | -10/Materials | Discovered new exit (range 11) 766 | -10/Materials | Entered Mines 836 | -10/Mines | Core integrity fell below 50% 872 | -10/Mines | Lost 3 parts (1n1u1w) 896 | -10/Mines | Discovered new exit (range 11) 1054 | -10/Mines | Core integrity fell below 20% 1084 | -10/Mines | Found a damaged Exp. Sensor Array with a note attached 1087 | -10/Mines | Found Prototype Device 1089 | -10/Mines | Identified Exp. Sensor Array 1357 | -10/Mines | Destroyed by G-47 Trooper with Particle Gun Last Messages --------------- (-156). 01090_ Dropped Faulty Exp. Sensor Array. 01091_ Acquired Lgt. Armor Plating. 01111_ K-01 Serf collects debris. 01117_ Acquired Faulty Exp. Sensor Array. 01119_ K-01 Serf collects debris. 01159_ A derelict is hurriedly installing traps. 01161_ 5A-FOU(g): "Hehe, this'll put a wrench in their mining defense operations..." 01161_ 5A-FOU(g) slips into the shadows. 01202_ Lgt. Armor Plating destroyed. 01212_ Ion Engine destroyed. 01216_ Aluminum Leg melted. 01216_ Particle Gun melted. 01216_ G-47 Trooper destroyed. 01222_ G-34 Mercenary destroyed. 01225_ Acquired 40 matter. 01227_ Acquired 22 matter. 01348_ G-34 Mercenary destroyed. 01357_ Critical hit (Burn: +37). Map ----- +----------------------------------------------------+ | ??????????????????????????????????????????####*### | | ?????????????????????????????????????????????#%#?# | | ?????????????????????????????????????????????# ### | | ?????????????????????????????????????????????#==[ | | ###??????????###???#?????????????????????????##=## | | ##????????# ### #??????????????????????????# ## | | ##????### # #??????????????????????????# ## | | %###### """ ###?????###??????????#####?# #? | | = """ ##????# ########### ### #? | | = """ #????# #? | | #### #????# ####? | | ##### #?????# ######## #???? | | ### ######?????# ##?????## ##??# | | ### ##??????????# ##?????## #### | | ## #???????????## ##?????## | | # ##????????????## ##?????## | | ## ##??????????????## ##?????## | | ## #?### !##????????????????# ## #??????##### | | ?###????###[#?????????????????#*### ##?????????? | | ??????????# #?????????????????#*#?# #?????????? | | ########??#!#?????????????????# #?## #?????????? | | #??#!########??????????# #??# ##????????? | | < #### ##???#######%#??# ##???????? | | %##### [%=%=#??## #???????? | | ####### = ##!#######???## #???????? | | #?????## =## ##@#??????????## #???????? | | ########?####?####### ##g###### ##??####???????? | | ????????## #??????# =!% #?????????????? | | ????????# ####?## *% #?????????????? | | ????????# ## ###### #????????????? | | ?????????# #??????? ?????????? | | ???????????#### ##?????????? ????????? | | ??????????????## ##?????????????? ?????????? | | ???????????????### ##?????????????????????????? | | ?????????????????## ##?????????????????????????? | | ??????????????????# #?????????????????????????? | | ??????????????????## ##?????????????????????????? | | ???????????????????####??????????????????????????? | | ?????????????????????????????????????????????????? | | ?????????????????????????????????????????????????? | | ?????????????????????????????????????????????????? | | ?????????????????????????????????????????????????? | | ?????????????????????????????????????????????????? | | ?????????????????????????????????????????????????? | | ?????????????????????????????????????????????????? | | ?????????????????????????????????????????????????? | | ?????????????????????????????????????????????????? | | ?????????????????????????????????????????????????? | | ?????????????????????????????????????????????????? | | ?????????????????????????????????????????????????? | +----------------------------------------------------+ Best States ------------- Heat Dissipation 25 Energy Generation 10 Energy Capacity 250 Matter Stores 300 Matter Capacity 300 Sight Range 16 Terrain Scan Density 10 Armor Coverage 150 Utility Shielding 33 Evasion (%) 40 Recoil Reduction 2 Item Schematics ----------------- None Robot Schematics ------------------ M-13 Machinist | -10/Materials | Hacked Fabricated ------------ Nothing Repaired ---------- Nothing Studied --------- None Alien Tech Used ----------------- None Achievements -------------- None Challenges ------------ None Game ------ Seed DataMediumBoregun Manual? 0 Play Time 00:08:48 Cumulative 10.3 hours Start 2025.12.07 @ 13:29:46 End 2025.12.07 @ 13:38:29 Sessions 1 Manual Loads 0 Difficulty Rogue Special Mode None Game No. 10 Rogue 10 Adventurer 0 Explorer 0 Win Type - Total 0 Types 0/0/0/0/0/0/0/0/0/0 Lore% 2 Gallery% 15 Achievement% 17 Wizard Run 0 Options --------- Layout 1 ASCII 0 Keyboard 0 Movement Numpad Keybinds 0 Fullscreen 1 Font 32/SmallcapsGlow Map View 50x35 Zoom Use 0% Tactical HUD 1 Map Filters NONE Filters NONE Steam 1 RUN: 13829ab3-5729-489a-9443-5401153ca20f